fUSD/lending_fUSD_20260315
["ID","MTS","AMOUNT","RATE_DAILY","PERIOD"]
[408399499,1773567056011,-803.48362453,0.00040821,120]
[408399500,1773567056021,-264.34498359,0.00040821,120]
[408399501,1773567056034,-500.0,0.00040821,120]
[408399502,1773567056045,-500.0,0.00040821,120]
[408399503,1773567056056,-500.0,0.00040821,120]
[408399504,1773567056066,-500.0,0.00040821,120]
[408399505,1773567056076,-500.0,0.00040821,120]
[408399506,1773567056085,-154.9419752,0.00040821,30]
[408399507,1773567056095,-500.0,0.00040821,120]
[408399508,1773567056105,-500.0,0.00040821,120]
[408399509,1773567056128,-500.0,0.00040821,120]
[408399510,1773567056151,-156.84263744,0.00040821,120]
[408399511,1773567056171,-500.0,0.00040821,120]
[408399512,1773567056182,-526.31738124,0.00040821,120]
[408399513,1773567056193,-164.54039286,0.00040821,120]
[408399514,1773567056205,-230.03790772,0.00040821,120]
[408399515,1773567056215,-836.31,0.00040821,120]
[408399516,1773567056226,-836.31,0.00040821,120]
[408399517,1773567056239,-836.31,0.00040821,120]
[408399518,1773567056250,-836.31,0.00040821,120]
[408399519,1773567056259,-836.31,0.00040821,120]
[408399520,1773567056268,-836.31,0.00040821,120]
[408399521,1773567056278,-836.31,0.00040821,120]
[408399522,1773567056287,-836.31,0.00040821,120]
[408399523,1773567056297,-836.31,0.00040821,120]
[408399524,1773567056307,-836.31,0.00040821,120]
[408399525,1773567056318,-836.31,0.00040821,120]
[408399526,1773567056327,-836.31,0.00040821,120]
[408399527,1773567056337,-836.31,0.00040821,120]
[408399528,1773567056347,-836.31,0.00040821,120]
[408399529,1773567056520,-836.31,0.00040821,120]
[408399530,1773567056531,-836.31,0.00040821,120]
[408399531,1773567056541,-836.31,0.00040821,120]
[408399532,1773567056551,-836.31,0.00040821,120]
[408399533,1773567056560,-500.0,0.00040821,30]
[408399534,1773567056570,-836.31,0.00040821,120]
[408399535,1773567056579,-500.0,0.00040821,30]
[408399536,1773567056588,-836.31,0.00040821,120]
[408399537,1773567056597,-329.90818872,0.00040821,30]
[408399538,1773567056606,-836.31,0.00040821,120]
[408399539,1773567056616,-836.31,0.00040821,120]
[408399540,1773567056625,-836.31,0.00040821,120]
[408399541,1773567056634,-836.52175187,0.00040821,120]
[408399542,1773567056643,-217.69292742,0.00040821,120]
[408399543,1773567056653,-151.0,0.00040821,28]
[408399544,1773567056662,-151.0,0.00040821,28]
[408399545,1773567056671,-500.0,0.00040821,120]
[408399546,1773567056680,-500.0,0.00040821,120]
[408399547,1773567056689,-500.0,0.00040821,120]
[408399548,1773567056698,-500.0,0.00040821,120]
[408399549,1773567056707,-151.0,0.00040821,28]
[408399550,1773567056716,-500.0,0.00040821,120]
[408399551,1773567056725,-270.93438825,0.00040821,120]
[408399552,1773567056735,-151.0,0.00040821,28]
[408399553,1773567056744,-500.0,0.00040821,120]
[408399554,1773567056754,-500.0,0.00040821,120]
[408399555,1773567056763,-500.0,0.00040821,120]
[408399556,1773567056772,-500.0,0.00040821,120]
[408399557,1773567056781,-500.0,0.00040821,120]
[408399558,1773567056794,-500.0,0.00040821,120]
[408399559,1773567056811,-168.55374989,0.00040821,120]
[408399560,1773567056822,-6251.02,0.00040821,120]
[408399561,1773567056834,-6251.02,0.00040821,120]
[408399562,1773567056845,-240.58768846,0.00040821,120]
[408399563,1773567056854,-6251.02,0.00040821,120]
[408399564,1773567056865,-152.38437748,0.00040821,120]
[408399565,1773567056875,-6251.02,0.00040821,120]
[408399566,1773567056885,-6251.02,0.00040821,120]
[408399567,1773567056906,-500.0,0.00040821,5]
[408399568,1773567056916,-6251.02,0.00040821,120]
[408399569,1773567056925,-500.0,0.00040821,5]
[408399570,1773567056935,-6251.02,0.00040821,120]
[408399571,1773567056943,-500.0,0.00040821,5]
[408399572,1773567056952,-6251.02,0.00040821,120]
[408399573,1773567056961,-500.0,0.00040821,5]
[408399574,1773567056970,-6251.02,0.00040821,120]
[408399575,1773567056981,-500.0,0.00040821,5]
[408399576,1773567056990,-6251.02,0.00040821,120]
[408399577,1773567056998,-532.99014397,0.00040821,5]
[408399578,1773567057007,-6251.02,0.00040821,120]
[408399579,1773567057016,-6251.02,0.00040821,120]
[408399580,1773567057024,-203.30087002,0.00040821,120]
[408399581,1773567057033,-6251.02,0.00040821,120]
[408399582,1773567057042,-6251.02,0.00040821,120]
[408399583,1773567057051,-6251.02,0.00040821,120]
[408399584,1773567057060,-6251.02,0.00040821,120]
[408399585,1773567057069,-6251.02,0.00040821,120]
[408399586,1773567057079,-6251.02,0.00040821,120]
[408399587,1773567057088,-6251.02,0.00040821,120]
[408399588,1773567057097,-6251.02,0.00040821,120]
[408399589,1773567057106,-6251.02,0.00040821,120]
[408399590,1773567057119,-6251.02,0.00040821,120]
[408399591,1773567057128,-6251.02,0.00040821,120]
[408399592,1773567057137,-6251.08099608,0.00040821,120]
[408399593,1773567057146,-153.39457135,0.00040821,120]
[408399594,1773567057157,-237.97776204,0.00040821,120]
[408399595,1773567057166,-566.11786591,0.00040821,120]
[408399596,1773567057176,-163.17821863,0.00040821,120]
[408399597,1773567057187,-228.24111253,0.00040821,120]
[408399598,1773567057196,-181.29809895,0.00040821,120]
[408399599,1773567057205,-151.0,0.00040821,120]
[408399600,1773567057214,-151.0,0.00040821,120]
[408399601,1773567057229,-151.0,0.00040821,120]
[408399602,1773567057238,-151.38160047,0.00040821,120]
[408399603,1773567057247,-151.0,0.00040821,120]
[408399604,1773567057255,-6960.72,0.00040821,120]
[408399605,1773567057264,-202.8497896,0.00040821,120]
[408399606,1773567057272,-6960.72,0.00040821,120]
[408399607,1773567057282,-6960.72,0.00040821,120]
[408399608,1773567057290,-6960.72,0.00040821,120]
[408399609,1773567057299,-6960.72,0.00040821,120]
[408399610,1773567057307,-187.29519303,0.00040821,120]
[408399611,1773567057316,-6960.72,0.00040821,120]
[408399612,1773567057325,-175.875112,0.00040821,120]
[408399613,1773567057333,-6960.72,0.00040821,120]
[408399614,1773567057342,-6960.72,0.00040821,120]
[408399615,1773567057350,-6960.72,0.00040821,120]
[408399616,1773567057358,-6960.72,0.00040821,120]
[408399617,1773567057367,-6960.72,0.00040821,120]
[408399618,1773567057375,-6960.72,0.00040821,120]
[408399619,1773567057384,-6960.72,0.00040821,120]
[408399620,1773567057392,-6960.72,0.00040821,120]
[408399621,1773567057400,-161.96209711,0.00040821,120]
[408399622,1773567057408,-6960.72,0.00040821,120]
[408399623,1773567057416,-6960.72,0.00040821,120]
[408399624,1773567057424,-6960.72,0.00040821,120]
[408399625,1773567057433,-6960.72,0.00040821,120]
[408399626,1773567057441,-6960.72,0.00040821,120]
[408399627,1773567057449,-6960.72,0.00040821,120]
[408399628,1773567057457,-500.0,0.00040821,120]
[408399629,1773567057465,-6960.72,0.00040821,120]
[408399630,1773567057474,-6960.72,0.00040821,120]
[408399631,1773567057482,-6960.72,0.00040821,120]
[408399632,1773567057490,-6960.8065158,0.00040821,120]
[408399633,1773567057499,-175.90441377,0.00040821,60]
[408399634,1773567057508,-500.0,0.00040821,120]
[408399635,1773567057516,-476.41274124,0.00040821,120]
[408399636,1773567057525,-500.0,0.00040821,120]
[408399637,1773567057534,-191.38379934,0.00040821,120]
[408399638,1773567057543,-500.0,0.00040821,120]
[408399639,1773567057553,-632.14523217,0.00040821,120]
[408399640,1773567057562,-33362.76,0.00040821,120]
[408399641,1773567057571,-33362.76,0.00040821,120]
[408399642,1773567057584,-33362.76,0.00040821,120]
[408399643,1773567057593,-33362.76,0.00040821,120]
[408399644,1773567057602,-33362.76,0.00040821,120]
[408399645,1773567057613,-33362.76,0.00040821,120]
[408399646,1773567057622,-33362.76,0.00040821,120]
[408399647,1773567057632,-33362.76,0.00040821,120]
[408399648,1773567057641,-33362.76,0.00040821,120]
[408399649,1773567057651,-315.30092312,0.00040821,120]
[408399650,1773567057661,-33362.76,0.00040821,120]
[408399651,1773567057670,-227.06278216,0.00040821,120]
[408399652,1773567057680,-33362.76,0.00040821,120]
[408399653,1773567057689,-33362.76,0.00040821,120]
[408399654,1773567057698,-33362.76,0.00040821,120]
[408399655,1773567057707,-33362.76,0.00040821,120]
[408399656,1773567057717,-33362.76,0.00040821,120]
[408399657,1773567057726,-33362.76,0.00040821,120]
[408399658,1773567057734,-33362.76,0.00040821,120]
[408399659,1773567057744,-33362.76,0.00040821,120]
[408399660,1773567057753,-33362.76,0.00040821,120]
[408399661,1773567057762,-33362.76,0.00040821,120]
[408399662,1773567057771,-33362.76,0.00040821,120]
[408399663,1773567057780,-33362.76,0.00040821,120]
[408399664,1773567057791,-33362.76,0.00040821,120]
[408399665,1773567057800,-33362.84450626,0.00040821,120]
[408399666,1773567057809,-199.88923843,0.00040821,120]
[408399667,1773567057818,-153.85976702,0.00040821,120]
[408399668,1773567057827,-182.87133827,0.00040821,120]
[408399669,1773567057836,-579.76189079,0.00040821,120]
[408399670,1773567057844,-500.0,0.00040821,120]
[408399671,1773567057853,-500.0,0.00040821,120]
[408399672,1773567057862,-500.0,0.00040821,120]
[408399673,1773567057871,-500.0,0.00040821,120]
[408399674,1773567057880,-150.01226921,0.00040821,120]
[408399675,1773567057889,-500.0,0.00040821,120]
[408399676,1773567057899,-500.0,0.00040821,120]
[408399677,1773567057908,-500.0,0.00040821,120]
[408399678,1773567057917,-500.0,0.00040821,120]
[408399679,1773567057926,-500.0,0.00040821,120]
[408399680,1773567057935,-432.42140551,0.00040821,120]
[408399681,1773567057944,-1552.83,0.00040821,120]
[408399682,1773567057953,-1552.83,0.00040821,120]
[408399683,1773567057962,-1552.83,0.00040821,120]
[408399684,1773567057970,-159.45114557,0.00040821,120]
[408399685,1773567057979,-339.14535775,0.00040821,120]
[408399686,1773567057997,-1552.83,0.00040821,120]
[408399687,1773567058007,-1552.83,0.00040821,120]
[408399688,1773567058016,-1552.83,0.00040821,120]
[408399689,1773567058026,-1552.83,0.00040821,120]
[408399690,1773567058035,-1552.83,0.00040821,120]
[408399691,1773567058044,-1552.83,0.00040821,120]
[408399692,1773567058053,-1552.83,0.00040821,120]
[408399693,1773567058063,-1552.83,0.00040821,120]
[408399694,1773567058072,-1552.83,0.00040821,120]
[408399695,1773567058082,-1552.83,0.00040821,120]
[408399696,1773567058092,-1552.83,0.00040821,120]
[408399697,1773567058101,-1552.83,0.00040821,120]
[408399698,1773567058112,-1552.83,0.00040821,120]
[408399699,1773567058121,-1552.83,0.00040821,120]
[408399700,1773567058131,-1552.83,0.00040821,120]
[408399701,1773567058140,-1552.83,0.00040821,120]
[408399702,1773567058151,-1552.83,0.00040821,120]
[408399703,1773567058160,-500.0,0.00040821,120]
[408399704,1773567058170,-1552.83,0.00040821,120]
[408399705,1773567058179,-365.11510576,0.00040821,120]
[408399706,1773567058191,-1552.83,0.00040821,120]
[408399707,1773567058200,-1552.83,0.00040821,120]
[408399708,1773567058209,-1553.0127932,0.00040821,120]
[408399709,1773567058219,-556.60809893,0.00040821,120]
[408399710,1773567058228,-397.860216,0.00040821,120]
[408399711,1773567058238,-15084.55,0.00040821,120]
[408399712,1773567058247,-15084.55,0.00040821,120]
[408399713,1773567058256,-252.94154909,0.00040821,120]
[408399714,1773567058265,-15084.55,0.00040821,120]
[408399715,1773567058274,-15084.55,0.00040821,120]
[408399716,1773567058283,-15084.55,0.00040821,120]
[408399717,1773567058294,-15084.55,0.00040821,120]
[408399718,1773567058304,-15084.55,0.00040821,120]
[408399719,1773567058315,-264.84189015,0.00040821,120]
[408399720,1773567058325,-15084.55,0.00040821,120]
[408399721,1773567058334,-15084.55,0.00040821,120]
[408399722,1773567058343,-15084.55,0.00040821,120]
[408399723,1773567058352,-15084.55,0.00040821,120]
[408399724,1773567058362,-15084.55,0.00040821,120]
[408399725,1773567058371,-15084.55,0.00040821,120]
[408399726,1773567058381,-15084.55,0.00040821,120]
[408399727,1773567058391,-15084.55,0.00040821,120]
[408399728,1773567058401,-15084.55,0.00040821,120]
[408399729,1773567058412,-155.93663346,0.00040821,120]
[408399730,1773567058423,-15084.55,0.00040821,120]
[408399731,1773567058434,-15084.55,0.00040821,120]
[408399732,1773567058444,-15084.55,0.00040821,120]
[408399733,1773567058454,-15084.55,0.00040821,120]
[408399734,1773567058463,-15084.55,0.00040821,120]
[408399735,1773567058473,-15084.55,0.00040821,120]
[408399736,1773567058482,-15084.55,0.00040821,120]
[408399737,1773567058492,-15084.77390449,0.00040821,120]
[408399738,1773567058501,-217.22006854,0.00040821,120]
[408399739,1773567058511,-301.63510017,0.00040821,120]
[408399740,1773567058521,-500.0,0.00040821,120]
[408399741,1773567058531,-247.06098965,0.00040821,120]
[408399742,1773567058540,-8339.06,0.00040821,120]
[408399743,1773567058686,-8339.06,0.00040821,120]
[408399744,1773567058696,-8339.06,0.00040821,120]
[408399745,1773567058706,-8339.06,0.00040821,120]
[408399746,1773567058716,-8339.06,0.00040821,120]
[408399747,1773567058727,-8339.06,0.00040821,120]
[408399748,1773567058736,-8339.06,0.00040821,120]
[408399749,1773567058746,-8339.06,0.00040821,120]
[408399750,1773567058758,-8339.06,0.00040821,120]
[408399751,1773567058768,-8339.06,0.00040821,120]
[408399752,1773567058779,-8339.06,0.00040821,120]
[408399753,1773567058791,-8339.06,0.00040821,120]
[408399754,1773567058800,-8339.06,0.00040821,120]
[408399755,1773567058810,-8339.06,0.00040821,120]
[408399756,1773567058820,-8339.06,0.00040821,120]
[408399757,1773567058829,-8339.06,0.00040821,120]
[408399758,1773567058840,-500.0,0.00040821,120]
[408399759,1773567058850,-8339.06,0.00040821,120]
[408399760,1773567058859,-203.18881738,0.00040821,120]
[408399761,1773567058868,-8339.06,0.00040821,120]
[408399762,1773567058878,-8339.06,0.00040821,120]
[408399763,1773567058887,-8339.06,0.00040821,120]
[408399764,1773567058896,-8339.06,0.00040821,120]
[408399765,1773567058905,-8339.06,0.00040821,120]
[408399766,1773567058914,-8339.06,0.00040821,120]
[408399767,1773567058924,-8339.23265929,0.00040821,120]
[408399768,1773567058933,-151.40038469,0.00040821,120]
[408399769,1773567058942,-188.1878163,0.00040821,120]
[408399770,1773567058952,-511.85190634,0.00040821,120]
[408399771,1773567058961,-500.0,0.00040821,120]
[408399772,1773567058969,-365.5398065,0.00040821,120]
[408399773,1773567058978,-500.0,0.00040821,120]
[408399774,1773567058987,-553.1875,0.00040821,120]
[408399775,1773567058996,-215.64187557,0.00040821,120]
[408399776,1773567059005,-2092.49,0.00040821,120]
[408399777,1773567059013,-2092.49,0.00040821,120]
[408399778,1773567059022,-2092.49,0.00040821,120]
[408399779,1773567059031,-223.44662137,0.00040821,120]
[408399780,1773567059040,-2092.49,0.00040821,120]
[408399781,1773567059049,-2092.49,0.00040821,120]
[408399782,1773567059057,-2092.49,0.00040821,120]
[408399783,1773567059066,-2092.49,0.00040821,120]
[408399784,1773567059075,-2092.49,0.00040821,120]
[408399785,1773567059084,-2092.49,0.00040821,120]
[408399786,1773567059093,-2092.49,0.00040821,120]
[408399787,1773567059102,-2092.49,0.00040821,120]
[408399788,1773567059114,-2092.49,0.00040821,120]
[408399789,1773567059123,-2092.49,0.00040821,120]
[408399790,1773567059132,-2092.49,0.00040821,120]
[408399791,1773567059141,-2092.49,0.00040821,120]
[408399792,1773567059151,-2092.49,0.00040821,120]
[408399793,1773567059161,-2092.49,0.00040821,120]
[408399794,1773567059170,-169.68018462,0.00040821,120]
[408399795,1773567059179,-2092.49,0.00040821,120]
[408399796,1773567059190,-2092.49,0.00040821,120]
[408399797,1773567059200,-2092.49,0.00040821,120]
[408399798,1773567059210,-2092.49,0.00040821,120]
[408399799,1773567059218,-2092.49,0.00040821,120]
[408399800,1773567059228,-2092.49,0.00040821,120]
[408399801,1773567059238,-2092.50259066,0.00040821,120]
[408399802,1773567059247,-167.9589031,0.00040821,120]
[408399803,1773567059256,-193.81196797,0.00040821,120]
[408399804,1773567059265,-262.95865244,0.00040821,120]
[408399805,1773567059274,-268.64446797,0.00040821,120]
[408399806,1773567059284,-150.28630004,0.00040821,120]
[408399807,1773567059293,-183.97890741,0.00040821,120]
[408399808,1773567059302,-237.10938699,0.00040821,120]
[408399809,1773567059311,-236.05263024,0.00040821,120]
[408399810,1773567059320,-380.37208717,0.00040821,120]
[408399811,1773567059330,-500.0,0.00040821,120]
[408399812,1773567059339,-255.8769216,0.00040821,120]
[408399813,1773567059348,-597.06561373,0.00040821,120]
[408399814,1773567059357,-203.08373655,0.00040821,120]
[408399815,1773567059366,-167.04421083,0.00040821,120]
[408399816,1773567059375,-500.0,0.00040821,60]
[408399817,1773567059384,-500.0,0.00040821,60]
[408399818,1773567059394,-500.0,0.00040821,60]
[408399819,1773567059403,-500.0,0.00040821,60]
[408399820,1773567059412,-500.0,0.00040821,60]
[408399821,1773567059421,-518.12098011,0.00040821,60]
[408399822,1773567059430,-155.97852354,0.00040821,120]
[408399823,1773567059439,-631.5189,0.00040821,120]
[408399824,1773567059448,-271.27625813,0.00040821,120]
[408399825,1773567059458,-629.44605735,0.00040821,120]
[408399826,1773567059467,-153.98998562,0.00040821,120]
[408399827,1773567059476,-206.0329042,0.00040821,120]
[408399828,1773567059486,-262.89281088,0.00040821,120]
[408399829,1773567059496,-199.1540608,0.00040821,120]
[408399830,1773567059506,-500.0,0.00040821,120]
[408399831,1773567059516,-500.0,0.00040821,120]
[408399832,1773567059526,-500.0,0.00040821,120]
[408399833,1773567059535,-500.0,0.00040821,120]
[408399834,1773567059545,-500.0,0.00040821,120]
[408399835,1773567059554,-500.0,0.00040821,120]
[408399836,1773567059564,-480.2405301,0.00040821,10]
[408399837,1773567059573,-500.0,0.00040821,120]
[408399838,1773567059582,-500.0,0.00040821,120]
[408399839,1773567059592,-500.0,0.00040821,120]
[408399840,1773567059601,-500.0,0.00040821,120]
[408399841,1773567059611,-500.0,0.00040821,120]
[408399842,1773567059620,-500.0,0.00040821,120]
[408399843,1773567059630,-500.0,0.00040821,120]
[408399844,1773567059639,-500.0,0.00040821,120]
[408399845,1773567059648,-500.0,0.00040821,120]
[408399846,1773567059658,-500.0,0.00040821,120]
[408399847,1773567059667,-500.0,0.00040821,120]
[408399848,1773567059675,-500.0,0.00040821,120]
[408399849,1773567059684,-500.0,0.00040821,120]
[408399850,1773567059693,-421.31571649,0.00040821,120]
[408399851,1773567059703,-513.82207931,0.00040821,120]
[408399852,1773567059712,-511.34396796,0.00040821,120]
[408399853,1773567059721,-159.66587462,0.00040821,120]
[408399854,1773567059730,-223.55740707,0.00040821,120]
[408399855,1773567059739,-225.28325947,0.00040821,120]
[408399856,1773567059749,-164.09295615,0.00040821,120]
[408399857,1773567059758,-163.35064259,0.00040821,120]
[408399858,1773567059767,-636.28,0.00040821,120]
[408399859,1773567059776,-636.28,0.00040821,120]
[408399860,1773567059785,-636.28,0.00040821,120]
[408399861,1773567059794,-636.28,0.00040821,120]
[408399862,1773567059804,-636.28,0.00040821,120]
[408399863,1773567059813,-636.28,0.00040821,120]
[408399864,1773567059822,-636.28,0.00040821,120]
[408399865,1773567059831,-636.28,0.00040821,120]
[408399866,1773567059841,-636.28,0.00040821,120]
[408399867,1773567059850,-636.28,0.00040821,120]
[408399868,1773567059859,-636.28,0.00040821,120]
[408399869,1773567059868,-636.28,0.00040821,120]
[408399870,1773567059877,-636.28,0.00040821,120]
[408399871,1773567059886,-636.28,0.00040821,120]
[408399872,1773567059895,-636.28,0.00040821,120]
[408399873,1773567059904,-636.28,0.00040821,120]
[408399874,1773567059913,-636.28,0.00040821,120]
[408399875,1773567059922,-636.28,0.00040821,120]
[408399876,1773567059933,-636.28,0.00040821,120]
[408399877,1773567059942,-636.28,0.00040821,120]
[408399878,1773567059951,-636.28,0.00040821,120]
[408399879,1773567059961,-636.28,0.00040821,120]
[408399880,1773567059970,-636.28,0.00040821,120]
[408399881,1773567059980,-636.36633637,0.00040821,120]
[408399882,1773567059989,-304.3895657,0.00040821,120]
[408399883,1773567059998,-151.96128209,0.00040821,120]
[408399884,1773567060007,-175.17354433,0.00040821,120]
[408399885,1773567060017,-230.6066911,0.00040821,120]
[408399886,1773567060026,-287.77827315,0.00040821,120]
[408399887,1773567060036,-154.82516968,0.00040821,120]
[408399888,1773567060046,-500.0,0.00040821,2]
[408399889,1773567060056,-500.0,0.00040821,120]
[408399890,1773567060065,-500.0,0.00040821,2]
[408399891,1773567060075,-500.0,0.00040821,120]
[408399892,1773567060084,-197.44344473,0.00040821,120]
[408399893,1773567060094,-500.0,0.00040821,2]
[408399894,1773567060104,-500.0,0.00040821,120]
[408399895,1773567060117,-500.0,0.00040821,120]
[408399896,1773567060127,-500.0,0.00040821,2]
[408399897,1773567060136,-500.0,0.00040821,120]
[408399898,1773567060147,-500.0,0.00040821,120]
[408399899,1773567060156,-500.0,0.00040821,2]
[408399900,1773567060165,-500.0,0.00040821,2]
[408399901,1773567060175,-500.0,0.00040821,120]
[408399902,1773567060185,-500.0,0.00040821,2]
[408399903,1773567060194,-500.0,0.00040821,2]
[408399904,1773567060204,-500.0,0.00040821,120]
[408399905,1773567060212,-500.0,0.00040821,2]
[408399906,1773567060221,-500.0,0.00040821,120]
[408399907,1773567060231,-239.085,0.00040821,120]
[408399908,1773567060239,-500.0,0.00040821,2]
[408399909,1773567060248,-500.0,0.00040821,120]
[408399910,1773567060258,-239.085,0.00040821,120]
[408399911,1773567060267,-500.0,0.00040821,2]
[408399912,1773567060276,-321.12765153,0.00040821,120]
[408399913,1773567060285,-500.0,0.00040821,120]
[408399914,1773567060294,-163.57413135,0.00040821,120]
[408399915,1773567060304,-500.0,0.00040821,2]
[408399916,1773567060313,-500.0,0.00040821,120]
[408399917,1773567060323,-500.0,0.00040821,2]
[408399918,1773567060332,-500.0,0.00040821,120]
[408399919,1773567060341,-523.9442066,0.00040821,120]
[408399920,1773567060350,-500.0,0.00040821,2]
[408399921,1773567060359,-239.085,0.00040821,120]
[408399922,1773567060367,-500.0,0.00040821,2]
[408399923,1773567060377,-239.085,0.00040821,120]
[408399924,1773567060386,-500.0,0.00040821,2]
[408399925,1773567060395,-500.0,0.00040821,2]
[408399926,1773567060404,-500.0,0.00040821,2]
[408399927,1773567060413,-500.0,0.00040821,2]
[408399928,1773567060423,-528.15621872,0.00040821,2]
[408399929,1773567060432,-150.0,0.00040873,120]
[408399930,1773567060442,-155.47092211,0.00040873,120]
[408399931,1773567060451,-250.0,0.00040873,120]
[408399932,1773567060460,-150.0,0.00040873,120]
[408399933,1773567060469,-500.0,0.00040873,120]
[408399934,1773567060479,-500.0,0.00040873,120]
[408399935,1773567060489,-152.0,0.00040881,11]
[408399936,1773567060498,-246.1232,0.00040888,30]
[408399937,1773567060508,-1970.53667234,0.000409,2]
[408399938,1773567060612,-203.04,0.000409,17]
[408399939,1773567060622,-371.77055609,0.000409,2]
[408399940,1773567060632,-700.0,0.000409,14]
[408399941,1773567060642,-265.21078828,0.000409,2]
[408399942,1773567060651,-1398.90751294,0.000409,2]
[408399943,1773567060660,-7948.41520564,0.000409,2]
[408399944,1773567060670,-216.75371809,0.000409,2]
[408399945,1773567060680,-159.77853922,0.00040928,120]
[408399946,1773567060689,-500.0,0.00040928,120]
[408399947,1773567060698,-1217.0,0.0004095,60]
[408399948,1773567060708,-501.81517205,0.0004097,3]
[408399949,1773567060717,-400.0,0.0004097,3]
[408399950,1773567060727,-275.57880961,0.00040982,120]
[408399951,1773567060736,-1492.06505802,0.00040999,30]
[408399952,1773567060745,-1199.98023778,0.00040999,30]
[408399953,1773567060755,-1199.98023778,0.00040999,30]
[408399954,1773567060764,-1199.98023778,0.00040999,30]
[408399955,1773567060773,-1107.50977528,0.00040999,30]
[408399956,1773567060783,-550.95001552,0.00041,31]
[408399957,1773567060793,-120404.44288367,0.00041,6]
[408399958,1773567060803,-602152.19609161,0.00041,120]
[408399959,1773567060961,-7188.2,0.00041,120]
[408399960,1773567060972,-4618.90662527,0.00041,120]
[408399961,1773567060984,-3326.87760932,0.00041,120]
[408399962,1773567061245,-118.49499182,0.00012872,2]
[408399963,1773567061404,-1058.64999987,0.00012716,2]
[408399966,1773567172650,177.14,0.00011806,2]
[408399967,1773567192353,245.006025,0.00012051,2]
[408399968,1773567309741,157.000324,0.00011984,2]
[408399969,1773567339314,-166.66,0.00012175,2]
[408399970,1773567349484,500.0,0.00011806,3]
[408399971,1773567366243,261.66721,0.00011891,2]
[408399972,1773567534597,4401.99,0.00011652,2]
[408399973,1773567543637,338.0,0.00011019,2]
[408399974,1773567544343,338.0,0.00011679,2]
[408399975,1773567566767,429.065776,0.00011875,2]
[408399976,1773567591299,217.63,0.00011613,2]
[408399978,1773567754086,175.476555,0.00012086,2]
[408399979,1773567853957,150.0,0.000163,120]
[408399981,1773567938337,200.0,0.00011603,2]
[408399983,1773568169125,-250.0,0.00012155,2]
[408399984,1773568169145,-5000.0,0.00012163,2]
[408399985,1773568169165,-250.0,0.00012178,2]
[408399986,1773568169184,-48.518724,0.00012201,2]
[408399987,1773568202898,-201.481276,0.00012201,2]
[408399988,1773568202920,-1852.42,0.00012305,2]
[408399989,1773568202941,-1303.7819742,0.000124,2]
[408399990,1773568202962,-300.0,0.00012406,2]
[408399991,1773568202984,-300.0,0.00012406,2]
[408399992,1773568203006,-1200.0,0.00012406,2]
[408399993,1773568203029,-164842.3167498,0.00012407,2]
[408400003,1773568231657,-250.0,0.00012201,2]
[408400004,1773568231666,-250.0,0.00012304,2]
[408400005,1773568231676,-100.09467,0.00012397,2]
[408400006,1773568231714,-254.00718175,0.00012397,2]
[408400007,1773568231724,-3115.9855797,0.00012407,2]
[408400008,1773568231870,-96211.75688916,0.00012407,2]
[408400030,1773568237808,-2027.42760257,0.00012407,2]
[408400031,1773568237863,-1209.14647997,0.00012407,2]
[408400032,1773568237873,-604.44900679,0.00012407,2]
[408400033,1773568237920,-840.93868436,0.00012407,2]